fUST/lending_fUST_20251224
["ID","MTS","AMOUNT","RATE_DAILY","PERIOD"]
[399599711,1766531088381,1853.32,0.00012121,30]
[399599712,1766531088785,2084.98,0.00012554,30]
[399599713,1766531089168,2316.65,0.00012987,30]
[399599714,1766531148079,-2930.29167073,5.662e-05,2]
[399599715,1766531148120,-4139.42665854,5.719e-05,2]
[399599716,1766531150789,-860.57334146,5.719e-05,2]
[399599717,1766531155271,5000.0,5.766e-05,2]
[399599718,1766531162138,162.17,9.139e-05,30]
[399599719,1766531162581,324.33,9.574e-05,30]
[399599720,1766531162963,486.5,0.00010009,30]
[399599721,1766531163376,648.66,0.00010444,30]
[399599722,1766531163778,810.83,0.0001088,30]
[399599723,1766531163819,3278.86331708,4.79e-05,2]
[399599724,1766531163863,2921.51869982,4.79e-05,2]
[399599725,1766531164176,972.99,0.00011315,30]
[399599726,1766531164568,1135.16,0.0001175,30]
[399599727,1766531164996,1297.32,0.00012185,30]
[399599728,1766531165391,1459.49,0.0001262,30]
[399599729,1766531165818,1621.63774397,0.00013056,30]
[399599730,1766531225918,-5000.0,5.715e-05,2]
[399599731,1766531237512,150.0,8.999e-05,30]
[399599732,1766531237933,227.03,9.427e-05,30]
[399599733,1766531238329,340.55,9.856e-05,30]
[399599734,1766531238728,454.06,0.00010284,30]
[399599735,1766531239122,567.58,0.00010713,30]
[399599736,1766531239840,681.09,0.00011141,30]
[399599737,1766531240005,794.61,0.0001157,30]
[399599738,1766531240387,908.13,0.00011998,30]
[399599739,1766531240786,1021.64,0.00012427,30]
[399599740,1766531241244,1098.68,0.00012856,30]
[399599741,1766531247281,0.01,5.766e-05,2]
[399599742,1766531247312,4999.99,5.766e-05,2]
[399599743,1766531274813,-5000.0,5.715e-05,2]
[399599744,1766531275607,0.01,4.2e-07,2]
[399599745,1766531275642,149.99,4.2e-07,2]
[399599746,1766531276628,150.0,4.2e-07,2]
[399599747,1766531277671,150.0,4.2e-07,2]
[399599748,1766531293454,5000.0,5.766e-05,2]
[399599750,1766531314418,150.0,0.00012955,30]
[399599751,1766531314809,158.92,0.00013571,30]
[399599752,1766531323432,-5000.0,5.715e-05,2]
[399599753,1766531339871,0.01,5.766e-05,2]
[399599754,1766531339899,4999.99,5.766e-05,2]
[399599755,1766531372107,-5000.0,5.713e-05,2]
[399599756,1766531385970,0.01,5.766e-05,2]
[399599757,1766531385998,4999.99,5.766e-05,2]
[399599758,1766531393747,150.0,0.00012832,30]
[399599759,1766531394045,155.55,0.00013443,30]
[399599760,1766531409759,5000.0,5.766e-05,2]
[399599814,1766531432846,-300.0,5.77e-05,2]
[399599815,1766531432856,-1200.0,5.77e-05,2]
[399599816,1766531432867,-5892.1040497,5.771e-05,2]
[399599817,1766531432879,-257.8545644,5.771e-05,2]
[399599818,1766531432889,-503.0,5.771e-05,2]
[399599819,1766531432899,-17.63219138,5.772e-05,2]
[399599820,1766531432911,-282.36780862,5.772e-05,2]
[399599821,1766531432921,-167.09260962,5.772e-05,2]
[399599822,1766531432938,-132.90739038,5.772e-05,2]
[399599823,1766531432948,-300.0,5.772e-05,2]
[399599824,1766531432957,-18.48657167,5.773e-05,2]
[399599825,1766531432969,-618.13832791,5.773e-05,2]
[399599826,1766531435097,-5000.0,5.712e-05,2]
[399599848,1766531438587,-563.37510042,5.773e-05,2]
[399599851,1766531438597,-451.16417272,5.773e-05,2]
[399599852,1766531438607,-500.0,5.773e-05,2]
[399599855,1766531438617,-500.0,5.773e-05,2]
[399599858,1766531438628,-500.0,5.773e-05,2]
[399599860,1766531438638,-500.0,5.773e-05,2]
[399599862,1766531438647,-500.0,5.773e-05,2]
[399599864,1766531438657,-548.38694091,5.773e-05,2]
[399599866,1766531438668,-500.0,5.773e-05,2]
[399599868,1766531438678,-500.0,5.773e-05,2]
[399599870,1766531438688,-500.0,5.773e-05,2]
[399599872,1766531438697,-500.0,5.773e-05,2]
[399599874,1766531438707,-500.0,5.773e-05,2]
[399599876,1766531438718,-500.0,5.773e-05,2]
[399599878,1766531438728,-500.0,5.773e-05,2]
[399599880,1766531438738,-368.17025784,5.773e-05,2]
[399599882,1766531438748,-500.0,5.773e-05,2]
[399599884,1766531438757,-500.0,5.773e-05,2]
[399599886,1766531438769,-237.42734949,5.774e-05,2]
[399599888,1766531438779,-4388.17011685,5.774e-05,2]
[399600073,1766531440667,-269.247383,5.774e-05,2]
[399600562,1766531447061,-8820.2249,5.774e-05,2]
[399600563,1766531456069,0.01,5.766e-05,2]
[399600564,1766531456098,4999.99,5.766e-05,2]
[399600565,1766531481657,-5000.0,5.715e-05,2]
[399600566,1766531499155,-300.0,5.773e-05,2]
[399600567,1766531502208,5000.0,5.773e-05,2]
[399600568,1766531522346,300.0,5.773e-05,2]
[399600569,1766531526082,4100.01,5.773e-05,2]
[399600570,1766531526113,899.99,5.773e-05,2]
[399600571,1766531548929,5000.0,5.773e-05,2]
[399600572,1766531561736,-319.88662106,5.773e-05,2]
[399600573,1766531561780,-398.00074638,5.773e-05,2]
[399600574,1766531561824,-500.0,5.773e-05,2]
[399600575,1766531561868,-500.0,5.773e-05,2]
[399600576,1766531561912,-500.0,5.773e-05,2]
[399600577,1766531561955,-500.0,5.773e-05,2]
[399600578,1766531561999,-500.0,5.773e-05,2]
[399600579,1766531562042,-500.0,5.773e-05,2]
[399600580,1766531562084,-500.0,5.773e-05,2]
[399600581,1766531562126,-500.0,5.773e-05,2]
[399600582,1766531562167,-198.4982377,5.773e-05,2]
[399600583,1766531562898,-500.0,5.773e-05,2]
[399600584,1766531562932,-500.0,5.773e-05,2]
[399600585,1766531562969,-500.0,5.773e-05,2]
[399600586,1766531563006,-500.0,5.773e-05,2]
[399600587,1766531563045,-500.0,5.773e-05,2]
[399600588,1766531563083,-500.0,5.773e-05,2]
[399600589,1766531563122,-500.0,5.773e-05,2]
[399600590,1766531563160,-500.0,5.773e-05,2]
[399600591,1766531563198,-500.0,5.773e-05,2]
[399600592,1766531563236,-500.0,5.773e-05,2]
[399600593,1766531563296,-500.0,5.773e-05,2]
[399600594,1766531563335,-500.0,5.773e-05,2]
[399600595,1766531563374,-500.0,5.773e-05,2]
[399600596,1766531563413,-500.0,5.773e-05,2]
[399600597,1766531563454,-500.0,5.773e-05,2]
[399600598,1766531563495,-500.0,5.773e-05,2]
[399600599,1766531563535,-500.0,5.773e-05,2]
[399600600,1766531563573,-500.0,5.773e-05,2]
[399600601,1766531563611,-500.0,5.773e-05,2]
[399600602,1766531563650,-500.0,5.773e-05,2]
[399600603,1766531563825,-500.0,5.773e-05,2]
[399600604,1766531563865,-500.0,5.773e-05,2]
[399600605,1766531563905,-500.0,5.773e-05,2]
[399600606,1766531563948,-500.0,5.773e-05,2]
[399600607,1766531563988,-500.0,5.773e-05,2]
[399600608,1766531564025,-500.0,5.773e-05,2]
[399600609,1766531564064,-500.0,5.773e-05,2]
[399600610,1766531564103,-500.0,5.773e-05,2]
[399600611,1766531564143,-186.72227575,5.773e-05,2]
[399600612,1766531564182,-500.0,5.773e-05,2]
[399600613,1766531564221,-126.5654485,5.773e-05,2]
[399600614,1766531565466,-373.4345515,5.773e-05,2]
[399600615,1766531565500,-500.0,5.773e-05,2]
[399600616,1766531565533,-500.0,5.773e-05,2]
[399600617,1766531565565,-500.0,5.773e-05,2]
[399600618,1766531565597,-500.0,5.773e-05,2]
[399600619,1766531565630,-500.0,5.773e-05,2]
[399600620,1766531565663,-500.0,5.773e-05,2]
[399600621,1766531565696,-500.0,5.773e-05,2]
[399600622,1766531565728,-500.0,5.773e-05,2]
[399600623,1766531565760,-500.0,5.773e-05,2]
[399600624,1766531565975,-500.0,5.773e-05,2]
[399600625,1766531566007,-500.0,5.773e-05,2]
[399600626,1766531566040,-500.0,5.773e-05,2]
[399600627,1766531566072,-500.0,5.773e-05,2]
[399600628,1766531566104,-500.0,5.773e-05,2]
[399600629,1766531566136,-500.0,5.773e-05,2]
[399600630,1766531566169,-500.0,5.773e-05,2]
[399600631,1766531566201,-246.79572318,5.773e-05,2]
[399600632,1766531566233,-500.0,5.773e-05,2]
[399600633,1766531566265,-500.0,5.773e-05,2]
[399600634,1766531566300,-6.41855364,5.773e-05,2]
[399600635,1766531566752,-493.58144636,5.773e-05,2]
[399600636,1766531566784,-500.0,5.773e-05,2]
[399600637,1766531566815,-500.0,5.773e-05,2]
[399600638,1766531566845,-500.0,5.773e-05,2]
[399600639,1766531566876,-500.0,5.773e-05,2]
[399600640,1766531566908,-500.0,5.773e-05,2]
[399600641,1766531566940,-500.0,5.773e-05,2]
[399600642,1766531566971,-500.0,5.773e-05,2]
[399600643,1766531567002,-500.0,5.773e-05,2]
[399600644,1766531567033,-500.0,5.773e-05,2]
[399600645,1766531567251,-500.0,5.773e-05,2]
[399600646,1766531567284,-500.0,5.773e-05,2]
[399600647,1766531567315,-500.0,5.773e-05,2]
[399600648,1766531567348,-500.0,5.773e-05,2]
[399600649,1766531567378,-500.0,5.773e-05,2]
[399600650,1766531567410,-500.0,5.773e-05,2]
[399600651,1766531567443,-500.0,5.773e-05,2]
[399600652,1766531567476,-500.0,5.773e-05,2]
[399600653,1766531567507,-500.0,5.773e-05,2]
[399600654,1766531567537,-500.0,5.773e-05,2]
[399600655,1766531567758,-500.0,5.773e-05,2]
[399600656,1766531567791,-500.0,5.773e-05,2]
[399600657,1766531572205,5000.0,5.773e-05,2]
[399600658,1766531573137,3000.01,5.773e-05,2]
[399600659,1766531573163,8456.90665541,5.773e-05,2]
[399600660,1766531595083,1543.10334459,5.773e-05,2]
[399600661,1766531595119,3456.89665541,5.773e-05,2]
[399600662,1766531606402,500.0,5.773e-05,2]
[399600663,1766531606465,500.0,5.773e-05,2]
[399600664,1766531606514,500.0,5.773e-05,2]
[399600665,1766531606563,500.0,5.773e-05,2]
[399600666,1766531606618,250.0,5.773e-05,2]
[399600667,1766531617852,4293.11334459,5.773e-05,2]
[399600668,1766531617881,706.88665541,5.773e-05,2]
[399600669,1766531640651,5000.0,5.773e-05,2]
[399600670,1766531664874,4293.12334459,5.773e-05,2]
[399600671,1766531664904,706.87665541,5.773e-05,2]
[399600672,1766531687623,5000.0,5.773e-05,2]
[399600673,1766531690613,-900.0,5.774e-05,2]
[399600674,1766531690649,-1200.0,5.775e-05,2]
[399600675,1766531690682,-300.0,5.775e-05,2]
[399600676,1766531690716,-500.0,5.775e-05,2]
[399600677,1766531690750,-500.0,5.775e-05,2]
[399600678,1766531690783,-356.2409562,5.775e-05,2]
[399600679,1766531693920,-3651.69187494,5.776e-05,2]
[399600680,1766531693974,-10000.01,5.776e-05,2]
[399600681,1766531694122,-10000.01,5.776e-05,2]
[399600682,1766531694251,-10000.01,5.776e-05,2]
[399600683,1766531694384,-10000.01,5.776e-05,2]
[399600684,1766531696559,-10000.01,5.776e-05,2]
[399600685,1766531696675,-10000.01,5.776e-05,2]
[399600686,1766531696789,-10000.01,5.776e-05,2]
[399600687,1766531697015,-10000.01,5.776e-05,2]
[399600688,1766531704333,-300.0,5.775e-05,2]
[399600689,1766531704367,-300.0,5.775e-05,2]
[399600690,1766531704401,-300.0,5.775e-05,2]
[399600691,1766531704435,-1200.0,5.775e-05,2]
[399600692,1766531704471,-300.0,5.775e-05,2]
[399600693,1766531704586,-5200.01,5.776e-05,2]
[399600694,1766531709597,-10000.01,5.776e-05,2]
[399600695,1766531709708,-10000.01,5.776e-05,2]
[399600696,1766531709824,-10000.01,5.776e-05,2]
[399600697,1766531709968,-10000.01,5.776e-05,2]
[399600698,1766531715654,-5000.0,5.719e-05,2]
[399600699,1766531715696,-0.01,5.773e-05,2]
[399600700,1766531715795,-533.87981491,5.773e-05,2]
[399600701,1766531715830,-500.0,5.773e-05,2]
[399600702,1766531715864,-500.0,5.773e-05,2]
[399600703,1766531715898,-500.0,5.773e-05,2]
[399600704,1766531715932,-500.0,5.773e-05,2]
[399600705,1766531715966,-500.0,5.773e-05,2]
[399600706,1766531716000,-500.0,5.773e-05,2]
[399600707,1766531716034,-500.0,5.773e-05,2]
[399600708,1766531716067,-500.0,5.773e-05,2]
[399600709,1766531716374,-500.0,5.773e-05,2]
[399600710,1766531716412,-432.25037018,5.776e-05,2]
[399600711,1766531716450,-10000.01,5.776e-05,2]
[399600712,1766531716482,-500.0,5.776e-05,2]
[399600713,1766531716500,-9000.01,5.776e-05,2]
[399600714,1766531719441,-500.0,5.773e-05,2]
[399600715,1766531719477,-500.0,5.773e-05,2]
[399600716,1766531720154,151.0,5.773e-05,2]
[399600717,1766531720760,151.0,5.773e-05,2]
[399600718,1766531721477,151.0,5.773e-05,2]
[399600719,1766531722079,180.66621127,5.773e-05,2]
[399600720,1766531732980,5000.0,5.773e-05,2]
[399600721,1766531755981,2366.34378873,5.773e-05,2]
[399600722,1766531756013,2633.65621127,5.773e-05,2]
[399600723,1766531778768,5000.0,5.773e-05,2]
[399600724,1766531801796,2366.35378873,5.773e-05,2]
[399600725,1766531801828,2633.64621127,5.773e-05,2]
[399600726,1766531825562,5000.0,5.773e-05,2]
[399600727,1766531848767,2366.36378873,5.773e-05,2]
[399600728,1766531848796,2633.63621127,5.773e-05,2]
[399600729,1766531860773,-300.0,5.774e-05,2]
[399600730,1766531871584,5000.0,5.774e-05,2]
[399600731,1766531882405,300.0,5.774e-05,2]
[399600732,1766531889740,1200.0,5.774e-05,2]
[399600733,1766531894798,2900.01,5.774e-05,2]
[399600734,1766531894827,2099.99,5.774e-05,2]
[399600735,1766531917610,5000.0,5.774e-05,2]
[399600736,1766531941149,2900.02,5.774e-05,2]
[399600737,1766531941189,2099.98,5.774e-05,2]
[399600738,1766531943003,300.0,5.774e-05,2]
[399600739,1766531959965,7600.03,5.676e-05,2]
[399600740,1766531960002,10000.01,5.676e-05,2]
[399600741,1766531960036,10000.01,5.676e-05,2]
[399600742,1766531960070,10000.01,5.676e-05,2]
[399600743,1766531960101,10000.01,5.676e-05,2]
[399600744,1766531960132,10000.01,5.676e-05,2]
[399600745,1766531960165,10000.01,5.676e-05,2]
[399600746,1766531960198,10000.01,5.676e-05,2]
[399600747,1766531960230,10000.01,5.676e-05,2]
[399600748,1766531960265,10000.01,5.676e-05,2]
[399600749,1766531966058,-5000.0,5.62e-05,2]
[399600750,1766531970288,-10000.01,5.676e-05,2]
[399600751,1766531970451,-10000.01,5.676e-05,2]
[399600752,1766531970638,-10000.01,5.676e-05,2]
[399600753,1766531970746,-10000.01,5.676e-05,2]
[399600754,1766531972204,-10000.01,5.676e-05,2]
[399600755,1766531972361,-10000.01,5.676e-05,2]
[399600756,1766531972534,-10000.01,5.676e-05,2]
[399600757,1766531972657,-10000.01,5.676e-05,2]
[399600758,1766531972789,-10000.01,5.676e-05,2]
[399600759,1766531972916,-10000.01,5.676e-05,2]
[399600760,1766531975359,-10000.01,5.676e-05,2]
[399600761,1766531975734,-10000.01,5.676e-05,2]
[399600762,1766531978217,-10000.01,5.676e-05,2]
[399600763,1766531978343,-10000.01,5.676e-05,2]
[399600764,1766531978487,-10000.01,5.676e-05,2]
[399600765,1766531978636,-10000.01,5.676e-05,2]
[399600766,1766531978815,-10000.01,5.676e-05,2]
[399600767,1766531978974,-10000.01,5.676e-05,2]
[399600768,1766531981316,-10000.01,5.676e-05,2]
[399600769,1766532115185,-5000.0,5.564e-05,2]
[399600770,1766532115255,-0.01,5.619e-05,2]
[399600771,1766532115755,-299.99,5.619e-05,2]
[399600772,1766532115785,-444.83789527,5.62e-05,2]
[399600773,1766532121196,-4555.16210473,5.62e-05,2]
[399600774,1766532121231,-388.68579054,5.62e-05,2]
[399600775,1766532121281,-112.31420946,5.62e-05,2]
[399600776,1766532127222,-300.0,5.619e-05,2]
[399600777,1766532127275,-769.9508926,5.669e-05,2]
[399600778,1766532127337,-619.0,5.675e-05,2]
[399600779,1766532127386,-300.0,5.675e-05,2]
[399600780,1766532127435,-500.0,5.675e-05,2]
[399600781,1766532127484,-500.0,5.675e-05,2]
[399600782,1766532127531,-497.51445916,5.675e-05,2]
[399600783,1766532127584,-363.20187502,5.675e-05,2]
[399600784,1766532127633,-500.0,5.675e-05,2]
[399600785,1766532127678,-500.0,5.675e-05,2]
[399600786,1766532127723,-113.26196024,5.675e-05,2]
[399600787,1766532128238,-74.15162596,5.675e-05,2]
[399600790,1766532162997,-336.04128795,5.563e-05,2]
[399600791,1766532166368,-388.96156209,5.563e-05,2]
[399600792,1766532168666,-417.75946656,5.563e-05,2]
[399600793,1766532170655,-224.60521826,5.563e-05,2]
[399600794,1766532173597,-183.22191816,5.563e-05,2]
[399600795,1766532175044,-242.82769462,5.563e-05,2]
[399600796,1766532177380,-370.08682874,5.563e-05,2]
[399600797,1766532179664,-582.71037272,5.563e-05,2]
[399600798,1766532182723,-793.38581273,5.563e-05,2]
[399600799,1766532186122,4003.0961874,5.479e-05,2]
[399600800,1766532186633,-240.03317121,5.563e-05,2]
[399600801,1766532189902,-471.05942776,5.563e-05,2]
[399600802,1766532192250,-366.89231098,5.563e-05,2]
[399600819,1766532273825,202.0,4.2e-07,2]
[399600820,1766532274831,202.0,4.2e-07,2]
[399600840,1766532337002,5000.0,5.553e-05,2]
[399600845,1766532345333,592.9138126,5.553e-05,2]
[399600846,1766532345371,4407.0861874,5.553e-05,2]
[399600850,1766532361506,5000.0,5.553e-05,2]
[399600851,1766532369315,592.9238126,5.553e-05,2]
[399600852,1766532369350,4407.0761874,5.553e-05,2]
[399600853,1766532400194,-204.87601877,5.48e-05,2]
[399600854,1766532402895,-182.15375553,5.48e-05,2]
[399600855,1766532404944,-250.0,5.48e-05,2]
[399600856,1766532408730,-326.2278542,5.48e-05,2]
[399600857,1766532410615,-202.94392973,5.48e-05,2]
[399600858,1766532412771,-307.23,5.48e-05,2]
[399600859,1766532414350,-403.1057111,5.48e-05,2]
[399600860,1766532416873,-195.9353418,5.48e-05,2]
[399600861,1766532418339,-2927.52738887,5.48e-05,2]
[399600862,1766532420059,-156.80490251,5.535e-05,2]
[399600863,1766532421204,-4843.19509749,5.535e-05,2]
[399600864,1766532431254,313.61980502,5.553e-05,2]
[399600865,1766532431282,4686.38019498,5.553e-05,2]
[399600866,1766532445738,-247.48699336,5.535e-05,2]
[399600867,1766532448996,-226.12855687,5.535e-05,2]
[399600868,1766532449762,-4526.38444977,5.535e-05,2]
[399600869,1766532455431,947.24110046,5.553e-05,2]
[399600870,1766532455759,-4052.75889954,5.553e-05,2]
[399600871,1766532463433,1894.49220092,5.553e-05,2]
[399600872,1766532463469,3105.50779908,5.553e-05,2]
[399600877,1766532493155,-686.32960048,5.48e-05,2]
[399600880,1766532495216,-172.878,5.48e-05,2]
[399600884,1766532497776,-318.24977511,5.48e-05,2]
[399600885,1766532499256,-293.31108413,5.48e-05,2]
[399600890,1766532503758,-496.66397761,5.48e-05,2]
[399600892,1766532506201,-565.21,5.48e-05,2]
[399600893,1766532508272,-641.43460986,5.48e-05,2]
[399600894,1766532510784,-964.51860206,5.48e-05,2]
[399600896,1766532512361,-214.15,5.48e-05,2]
[399600898,1766532514494,-403.70845104,5.48e-05,2]
[399600934,1766532610904,-243.54589971,5.48e-05,2]
[399600935,1766532610930,-0.61056181,5.48e-05,2]
[399600936,1766532612901,-243.03506484,5.48e-05,2]
[399600939,1766532616105,-245.32991224,5.48e-05,2]
[399600946,1766532625155,-236.20781382,5.425e-05,2]
[399600947,1766532629748,-278.08591794,5.425e-05,2]
[399600963,1766532631566,-4485.70626824,5.425e-05,2]
[399600964,1766532631576,-11.02446111,5.48e-05,2]
[399600965,1766532631587,-232.6788025,5.508e-05,2]
[399600966,1766532631596,-5000.0,5.535e-05,2]
[399600967,1766532631606,-533.88981491,5.673e-05,2]
[399600968,1766532631616,-300.0,5.674e-05,2]
[399600969,1766532631626,-300.0,5.674e-05,2]
[399600970,1766532631636,-500.0,5.675e-05,2]
[399600971,1766532631646,-472.48465177,5.675e-05,2]
[399600972,1766532631656,-500.0,5.675e-05,2]
[399600973,1766532631665,-500.0,5.675e-05,2]
[399600974,1766532631675,-500.0,5.675e-05,2]
[399600975,1766532631684,-500.0,5.675e-05,2]
[399600976,1766532631695,-500.0,5.675e-05,2]
[399600977,1766532631707,-500.0,5.675e-05,2]
[399600978,1766532631716,-446.10155336,5.675e-05,2]
[399600979,1766532631726,-500.0,5.675e-05,2]
[399600980,1766532631737,-500.0,5.675e-05,2]
[399600981,1766532631747,-24892.33726948,5.676e-05,2]
[399601011,1766532637726,-886.7462414,5.676e-05,2]
[399601013,1766532637739,-954.50930635,5.676e-05,2]
[399601016,1766532637750,-1008.19331332,5.676e-05,2]
[399601209,1766532640351,-3e-08,5.62e-05,2]
[399601229,1766532667093,-5000.0,5.564e-05,2]
[399601230,1766532669278,0.01,5.581e-05,2]
[399601231,1766532669994,-4999.99,5.581e-05,2]
[399601236,1766532684899,-1201.75528404,5.62e-05,2]
[399601240,1766532850258,-252.35879506,5.508e-05,2]
[399601241,1766532852198,-270.62349652,5.508e-05,2]
[399601242,1766532854716,-184.55368981,5.508e-05,2]
[399601243,1766532856892,-307.09836629,5.508e-05,2]
[399601244,1766532862236,-679.40760078,5.508e-05,2]
[399601245,1766532864824,-153.28050547,5.508e-05,2]
[399601246,1766532867977,-263.79218621,5.508e-05,2]
[399601247,1766532869033,-1680.3909304,5.508e-05,2]
[399601248,1766532870284,-266.29517752,5.564e-05,2]
[399601249,1766532871766,-192.70074819,5.564e-05,2]
[399601250,1766532873967,296.35,0.00013051,30]
[399601251,1766532874358,592.7,0.00013672,30]
[399601252,1766532876287,-427.04282101,5.564e-05,2]
[399601253,1766532878933,-184.68304335,5.564e-05,2]
[399601254,1766532881414,-155.2959668,5.564e-05,2]
[399601255,1766532884185,-286.77014095,5.564e-05,2]
[399601256,1766532886690,-238.55678043,5.564e-05,2]
[399601257,1766532892761,-228.77305958,5.564e-05,2]
[399601258,1766532894590,5000.0,5.554e-05,2]
[399601259,1766532896261,-246.90275092,5.592e-05,2]
[399601261,1766532958073,291.5,0.00012793,30]
[399601262,1766532958475,583.0,0.00013403,30]
[399601263,1766532970283,-326.42558712,5.576e-05,2]
[399601264,1766532973127,-320.59939884,5.576e-05,2]
[399601265,1766532976348,-317.56359281,5.576e-05,2]
[399601266,1766532979561,-196.61959301,5.576e-05,2]
[399601267,1766532982278,-464.80215162,5.576e-05,2]
[399601268,1766532984183,-500.0,5.576e-05,2]
[399601269,1766532986670,-448.28317802,5.576e-05,2]
[399601270,1766532989760,-500.0,5.576e-05,2]
[399601271,1766532991781,-200.0,5.576e-05,2]
[399601272,1766532994011,-300.0,5.575e-05,2]
[399601274,1766533037922,286.73,0.00011479,30]
[399601275,1766533038328,573.46,0.00012025,30]
[399601276,1766533038779,860.18,0.00012572,30]
[399601277,1766533039900,1146.91,0.00013119,30]
[399601278,1766533039942,1433.64,0.00013665,30]
[399601282,1766533116705,263.27,0.00011286,30]
[399601283,1766533117103,526.54,0.00011824,30]
[399601284,1766533117519,789.81,0.00012361,30]
[399601285,1766533117924,1053.07,0.00012899,30]
[399601286,1766533118319,1316.34,0.00013436,30]
[399601287,1766533118743,1579.61,0.00013973,30]
[399601288,1766533119277,5000.0,5.564e-05,2]
[399601289,1766533142093,5000.0,5.564e-05,2]
[399601290,1766533157770,0.01,5.564e-05,2]
[399601291,1766533157795,4999.99,5.564e-05,2]
[399601292,1766533165504,5000.0,5.564e-05,2]
[399601293,1766533188815,0.02,5.564e-05,2]
[399601294,1766533188842,4999.98,5.564e-05,2]
[399601295,1766533196597,233.11,0.00011243,30]
[399601296,1766533197051,466.22,0.00011779,30]
[399601297,1766533197475,699.34,0.00012314,30]
[399601298,1766533197931,932.45,0.00012849,30]
[399601299,1766533198316,1165.56,0.00013385,30]
[399601300,1766533198717,1398.67,0.0001392,30]
[399601301,1766533212120,5000.0,5.564e-05,2]
[399601302,1766533235202,0.03,5.564e-05,2]
[399601303,1766533235235,4999.97,5.564e-05,2]
[399601304,1766533258558,5000.0,5.564e-05,2]
[399601305,1766533274604,206.41,0.0001125,30]
[399601306,1766533275010,412.82,0.00011786,30]
[399601307,1766533275407,619.23,0.00012321,30]
[399601308,1766533275807,825.64,0.00012857,30]
[399601309,1766533276201,1032.05,0.00013393,30]
[399601310,1766533276592,1238.46,0.00013929,30]
[399601311,1766533281507,0.04,5.564e-05,2]
[399601312,1766533281536,4999.96,5.564e-05,2]
[399601314,1766533304769,5000.0,5.564e-05,2]
[399601316,1766533328297,0.05,5.564e-05,2]
[399601317,1766533328330,4999.95,5.564e-05,2]
[399601318,1766533351368,5000.0,5.564e-05,2]
[399601319,1766533354580,182.77,0.00011184,30]
[399601320,1766533354799,365.53,0.00011717,30]
[399601321,1766533355184,548.3,0.00012249,30]
[399601322,1766533355660,731.07,0.00012782,30]
[399601323,1766533356275,913.84,0.00013314,30]
[399601324,1766533356466,1096.6,0.00013847,30]
[399601325,1766533375285,0.06,5.564e-05,2]
[399601326,1766533375318,4999.94,5.564e-05,2]
[399601327,1766533397551,5000.0,5.564e-05,2]
[399601328,1766533420423,5000.0,5.564e-05,2]
[399601329,1766533432550,161.83,0.00011226,30]
[399601330,1766533433163,323.66,0.00011761,30]
[399601331,1766533433569,485.5,0.00012295,30]
[399601332,1766533434203,647.33,0.0001283,30]
[399601333,1766533434886,809.16,0.00013364,30]
[399601334,1766533435277,970.99,0.00013899,30]
[399601335,1766533444606,0.01,5.564e-05,2]
[399601336,1766533444634,4999.99,5.564e-05,2]
[399601337,1766533467402,5000.0,5.564e-05,2]
[399601338,1766533490662,0.02,5.564e-05,2]
[399601339,1766533490691,4999.98,5.564e-05,2]
[399601343,1766533510058,150.0,0.00011218,30]
[399601344,1766533510457,286.59,0.00011752,30]
[399601345,1766533510861,429.88,0.00012286,30]
[399601346,1766533511267,573.18,0.0001282,30]
[399601347,1766533511664,716.47,0.00013354,30]
[399601348,1766533512084,859.77,0.00013888,30]
[399601350,1766533513415,5000.0,5.564e-05,2]
[399601361,1766533537413,0.03,5.564e-05,2]
[399601362,1766533537443,4999.97,5.564e-05,2]
[399601363,1766533560724,5000.0,5.564e-05,2]
[399601364,1766533584296,0.04,5.564e-05,2]
[399601365,1766533584326,4999.96,5.564e-05,2]
[399601366,1766533587680,150.0,0.00011222,30]
[399601367,1766533588106,253.69,0.00011757,30]